[Event "45th Guernsey Open 2019"]
[Site "Vale"]
[Date "2019.10.20"]
[Round "1.1"]
[White "Kirby, Peter J."]
[Black "Hebden, Mark L"]
[Result "0-1"]
[ECO "E92"]
[WhiteElo "2004"]
[BlackElo "2427"]
[Annotator "NA"]
[PlyCount "48"]
[EventDate "2019.10.20"]
[EventCountry "GCI"]
[SourceTitle "playchess.com"]
[Source "ChessBase"]
[SourceQuality "1"]
[TimeControl "40/6000+30:2400+30"]

1. Nf3 {[%emt 0:00:00]} Nf6 {[%emt 0:00:24]} 2. c4 {[%emt 0:00:00]} g6 {[%emt 0:00:06]} 3. Nc3 {[%emt 0:00:00]} Bg7 {[%emt 0:00:04]} 4. e4 {[%emt 0:00:00]} d6 {[%emt 0:00:04]} 5. d4 {[%emt 0:00:00]} O-O {[%emt 0:00:04]} 6. Be2 {[%emt 0:00:04]} e5 {[%emt 0:00:04]} 7. dxe5 {[%emt 0:00:07]} dxe5 {[%emt 0:00:04]} 8. Qxd8 {[%emt 0:00:06]} Rxd8 {[%emt 0:00:04]} 9. Bg5 {[%emt 0:00:10]} Nbd7 {[%emt 0:02:25]} 10. O-O-O {[%emt 0:00:18]} Rf8 {[%emt 0:01:00]} 11. Nd5 {[%emt 0:00:27]} c6 {[%emt 0:00:36]} 12. Ne7+ {[%emt 0:00:05]} Kh8 {[%emt 0:00:05]} 13. Be3 {[%emt 0:00:50]} b6 {[%emt 0:01:33]} 14. Nxc8 {[%emt 0:00:06]} Rfxc8 {[%emt 0:01:48]} 15. g4 {[%emt 0:03:10]} Rc7 {[%emt 0:02:41]} 16. Nd2 {[%emt 0:03:50]} Bf8 {[%emt 0:03:33]} 17. g5 {[%emt 0:01:48]} Ne8 {[%emt 0:00:27]} 18. Bg4 {[%emt 0:07:22]} Nc5 {[%emt 0:01:11]} 19. f3 {[%emt 0:07:06]} h5 {[%emt 0:00:51]} 20. gxh6 {[%emt 0:05:48]} Nf6 {[%emt 0:04:35]} 21. h3 {[%emt 0:06:34]} Kh7 {[%emt 0:02:34]} 22. Nb3 {[%emt 0:09:15]} Nxb3+ {[%emt 0:00:45]} 23. axb3 {[%emt 0:00:02]} Bxh6 {[%emt 0:00:23]} 24. Rhe1 {[%emt 0:01:43]} Rh8 {[%emt 0:03:26]} 0-1

[Event "45th Guernsey Open 2019"]
[Site "Vale"]
[Date "2019.10.20"]
[Round "1.2"]
[White "Povah, Nigel E"]
[Black "De Kruif, Kees"]
[Result "1-0"]
[ECO "A45"]
[WhiteElo "2301"]
[BlackElo "1985"]
[Annotator "NA"]
[PlyCount "81"]
[EventDate "2019.10.20"]
[EventCountry "GCI"]
[SourceTitle "playchess.com"]
[Source "ChessBase"]
[SourceQuality "1"]
[TimeControl "40/6000+30:2400+30"]

1. d4 {[%emt 0:00:00]} Nf6 {[%emt 0:00:00]} 2. Bf4 {[%emt 0:00:00]} e6 {[%emt 0:01:25]} 3. e3 {[%emt 0:01:08]} c5 {[%emt 0:00:56]} 4. c3 {[%emt 0:00:17]} Be7 {[%emt 0:00:29]} 5. Nd2 {[%emt 0:00:25]} O-O {[%emt 0:01:34]} 6. Bd3 {[%emt 0:01:52]} d6 {[%emt 0:02:54]} 7. Qe2 {[%emt 0:11:46]} Nbd7 {[%emt 0:02:56]} 8. Ngf3 {[%emt 0:05:14]} Qc7 $14 {[%emt 0:12:13]} 9. h3 {[%emt 0:09:29]} a6 {[%emt 0:04:45]} 10. a4 {[%emt 0:02:39]} b6 {[%emt 0:03:22]} 11. Bh2 {[%emt 0:04:18]} Bb7 {[%emt 0:00:31]} 12. e4 {[%emt 0:04:37]} b5 {[%emt 0:15:06]} 13. e5 {[%emt 0:05:32]} dxe5 {[%emt 0:02:01]} 14. dxe5 {[%emt 0:01:33]} Nd5 {[%emt 0:03:33]} 15. O-O {[%emt 0:07:20]} c4 {[%emt 0:00:30]} 16. Bb1 {[%emt 0:03:13]} Nc5 {[%emt 0:02:53]} 17. axb5 {[%emt 0:00:43]} axb5 {[%emt 0:00:11]} 18. Rxa8 {[%emt 0:00:15]} Rxa8 {[%emt 0:00:09]} 19. Nd4 {[%emt 0:00:52]} Qb6 {[%emt 0:02:42]} 20. f4 {[%emt 0:06:10]} g6 {[%emt 0:07:47]} 21. Kh1 {[%emt 0:02:42]} Ra1 {[%emt 0:01:32]} 22. Bg1 {[%emt 0:01:11]} Qa6 {[%emt 0:00:41]} 23. Kh2 {[%emt 0:03:27]} Nc7 {[%emt 0:03:21]} 24. Nc2 {[%emt 0:09:13]} Ra4 {[%emt 0:04:18]} 25. Nf3 {[%emt 0:04:09]} Qa8 {[%emt 0:01:00]} 26. Bxc5 {[%emt 0:02:14]} Bxc5 {[%emt 0:00:08]} 27. Ncd4 {[%emt 0:00:45]} Bd5 {[%emt 0:05:32]} 28. Ng5 {[%emt 0:02:38]} h6 {[%emt 0:01:04]} 29. Ngf3 {[%emt 0:04:22]} Kg7 {[%emt 0:00:47]} 30. Nh4 {[%emt 0:00:59]} Bxd4 {[%emt 0:02:35]} 31. cxd4 {[%emt 0:00:07]} Qd8 {[%emt 0:01:04]} 32. Qg4 {[%emt 0:00:18]} Qe8 {[%emt 0:01:30]} 33. f5 {[%emt 0:01:31]} exf5 {[%emt 0:00:09]} 34. Nxf5+ {[%emt 0:01:28]} Kh7 {[%emt 0:00:16]} 35. Nd6 {[%emt 0:04:07]} Qg8 {[%emt 0:16:29]} 36. Qd7 {[%emt 0:01:23]} Ra7 {[%emt 0:00:10]} 37. Nxf7 {[%emt 0:01:25]} Qg7 {[%emt 0:01:04]} 38. Rf6 {[%emt 0:01:55]} Be6 {[%emt 0:02:02]} 39. Bxg6+ {[%emt 0:04:39]} Kg8 {[%emt 0:01:44]} 40. Qd8+ {[%emt 0:00:21]} Qf8 {[%emt 0:00:10]} 41. Nxh6+ {[%emt 0:40:09]} 1-0

[Event "45th Guernsey Open 2019"]
[Site "Vale"]
[Date "2019.10.20"]
[Round "1.3"]
[White "Kwossek, Georg"]
[Black "Baker, Chris W"]
[Result "0-1"]
[ECO "A40"]
[WhiteElo "1984"]
[BlackElo "2245"]
[Annotator "NA"]
[PlyCount "70"]
[EventDate "2019.10.20"]
[EventCountry "GCI"]
[SourceTitle "playchess.com"]
[Source "ChessBase"]
[SourceQuality "1"]
[TimeControl "40/6000+30:2400+30"]

1. d4 {[%emt 0:00:00]} e6 {[%emt 0:00:18]} 2. c4 {[%emt 0:00:00]} b6 {[%emt 0:01:28]} 3. e4 {[%emt 0:01:16]} Bb7 {[%emt 0:00:32]} 4. f3 {[%emt 0:01:16]} f5 {[%emt 0:01:25]} 5. exf5 {[%emt 0:01:58]} exf5 {[%emt 0:01:37]} 6. Qe2+ {[%emt 0:07:26]} Kf7 {[%emt 0:06:05]} 7. Nh3 {[%emt 0:01:20]} Bb4+ $14 {[%emt 0:02:05]} 8. Nc3 {[%emt 0:05:15]} Qf6 {[%emt 0:14:58]} 9. Be3 {[%emt 0:24:38]} Nc6 {[%emt 0:03:23]} 10. O-O-O {[%emt 0:00:11]} Bxc3 {[%emt 0:01:07]} 11. bxc3 {[%emt 0:00:07]} Re8 {[%emt 0:00:45]} 12. Qd2 {[%emt 0:02:57]} Na5 {[%emt 0:07:03]} 13. d5 {[%emt 0:13:10]} Ne7 {[%emt 0:06:02]} 14. Ng5+ {[%emt 0:06:28]} Kg8 {[%emt 0:03:55]} 15. h4 {[%emt 0:12:52]} Ba6 {[%emt 0:08:53]} 16. c5 {[%emt 0:06:18]} Bxf1 {[%emt 0:01:31]} 17. Bd4 {[%emt 0:00:21]} Nc4 {[%emt 0:07:02]} 18. Qe1 {[%emt 0:01:39]} Qg6 {[%emt 0:01:12]} 19. Qxf1 {[%emt 0:00:31]} b5 {[%emt 0:00:36]} 20. Qf2 {[%emt 0:10:00]} Nxd5 {[%emt 0:04:25]} 21. Rhe1 {[%emt 0:00:26]} Rxe1 {[%emt 0:07:11]} 22. Rxe1 {[%emt 0:03:15]} h6 {[%emt 0:01:28]} 23. c6 {[%emt 0:03:13]} hxg5 {[%emt 0:00:24]} 24. cxd7 {[%emt 0:00:09]} Kh7 {[%emt 0:00:42]} 25. hxg5 {[%emt 0:00:45]} Qxg5+ {[%emt 0:01:09]} 26. f4 {[%emt 0:00:57]} Qd8 {[%emt 0:02:47]} 27. Qf3 {[%emt 0:04:04]} Rf8 {[%emt 0:03:26]} 28. Qh5+ {[%emt 0:00:50]} Kg8 {[%emt 0:00:25]} 29. Rh1 {[%emt 0:00:54]} Nf6 {[%emt 0:00:37]} 30. Qxf5 {[%emt 0:01:52]} Qxd7 {[%emt 0:00:21]} 31. Qg5 {[%emt 0:00:31]} Qd5 {[%emt 0:01:44]} 32. f5 {[%emt 0:00:30]} c5 {[%emt 0:00:30]} 33. Bxf6 {[%emt 0:00:44]} Rxf6 {[%emt 0:00:27]} 34. Re1 {[%emt 0:00:08]} Qxf5 {[%emt 0:00:36]} 35. Qg3 {[%emt 0:00:10]} Qf4+ 0-1

[Event "45th Guernsey Open 2019"]
[Site "Vale"]
[Date "2019.10.20"]
[Round "1.4"]
[White "Giulian, Philip M"]
[Black "Magnussen, Pal"]
[Result "1-0"]
[ECO "A57"]
[WhiteElo "2131"]
[BlackElo "1983"]
[Annotator "NA"]
[PlyCount "63"]
[EventDate "2019.10.20"]
[EventCountry "GCI"]
[SourceTitle "playchess.com"]
[Source "ChessBase"]
[SourceQuality "1"]
[TimeControl "40/6000+30:2400+30"]

1. d4 {[%emt 0:00:00]} Nf6 {[%emt 0:00:00]} 2. c4 {[%emt 0:00:00]} c5 {[%emt 0:00:00]} 3. d5 {[%emt 0:00:00]} b5 {[%emt 0:01:04]} 4. cxb5 {[%emt 0:00:05]} a6 {[%emt 0:00:17]} 5. e3 {[%emt 0:00:07]} axb5 {[%emt 0:02:00]} 6. Bxb5 {[%emt 0:00:14]} Ba6 {[%emt 0:01:34]} 7. Bxa6 {[%emt 0:00:18]} Qa5+ {[%emt 0:01:21]} 8. Nc3 {[%emt 0:00:11]} Qxa6 {[%emt 0:00:14]} 9. Nge2 {[%emt 0:00:30]} g6 {[%emt 0:01:27]} 10. O-O {[%emt 0:03:06]} Bg7 {[%emt 0:00:38]} 11. a4 {[%emt 0:00:58]} O-O {[%emt 0:01:29]} 12. Nb5 {[%emt 0:00:47]} Qb7 {[%emt 0:03:43]} 13. Nec3 {[%emt 0:00:06]} d6 {[%emt 0:02:38]} 14. e4 {[%emt 0:00:25]} Na6 {[%emt 0:03:37]} 15. Bg5 {[%emt 0:01:26]} Nc7 {[%emt 0:03:27]} 16. Qd2 {[%emt 0:11:15]} Nxb5 {[%emt 0:04:48]} 17. axb5 {[%emt 0:00:06]} Ng4 {[%emt 0:05:24]} 18. Qe2 {[%emt 0:01:03]} Nf6 {[%emt 0:01:34]} 19. Ra6 {[%emt 0:04:38]} h6 {[%emt 0:03:24]} 20. Bxf6 {[%emt 0:05:41]} Bxf6 {[%emt 0:00:38]} 21. Rfa1 {[%emt 0:00:08]} Bxc3 {[%emt 0:09:19]} 22. bxc3 {[%emt 0:00:10]} Rxa6 {[%emt 0:00:39]} 23. bxa6 {[%emt 0:04:22]} Qa7 {[%emt 0:00:13]} 24. h4 {[%emt 0:09:39]} Rb8 {[%emt 0:01:36]} 25. h5 {[%emt 0:04:47]} Kg7 {[%emt 0:05:34]} 26. hxg6 {[%emt 0:06:58]} fxg6 {[%emt 0:00:19]} 27. e5 {[%emt 0:00:34]} Rf8 {[%emt 0:13:58]} 28. Rb1 {[%emt 0:04:37]} c4 {[%emt 0:01:16]} 29. exd6 {[%emt 0:02:44]} Rf7 {[%emt 0:01:01]} 30. Rb7 {[%emt 0:03:12]} Qxa6 {[%emt 0:00:40]} 31. Qe5+ {[%emt 0:00:16]} Kh7 {[%emt 0:00:51]} 32. Rxe7 {[%emt 0:00:23]} 1-0

[Event "45th Guernsey Open 2019"]
[Site "Vale"]
[Date "2019.10.20"]
[Round "1.5"]
[White "Van Dijk, Bram"]
[Black "Havenaar, Jan"]
[Result "1/2-1/2"]
[ECO "B00"]
[WhiteElo "1982"]
[BlackElo "2091"]
[Annotator "NA RC"]
[PlyCount "96"]
[EventDate "2019.10.20"]
[EventCountry "GCI"]
[SourceTitle "playchess.com"]
[Source "ChessBase"]
[SourceQuality "1"]
[TimeControl "40/6000+30:2400+30"]

1. e4 {[%emt 0:00:00]} g6 {[%emt 0:00:06]} 2. d4 {[%emt 0:00:43]} Bg7 {[%emt 0:00:16]} 3. g3 {[%emt 0:00:21]} c5 {[%emt 0:02:11]} 4. dxc5 {[%emt 0:01:24]} Qa5+ {[%emt 0:02:39]} 5. c3 {[%emt 0:00:21]} Qxc5 {[%emt 0:00:06]} 6. Be3 {[%emt 0:02:57]} Qc7 {[%emt 0:04:59]} 7. Bg2 {[%emt 0:02:14]} Nc6 {[%emt 0:01:22]} 8. Ne2 {[%emt 0:06:34]} d6 {[%emt 0:03:29]} 9. Na3 {[%emt 0:04:47]} Nf6 {[%emt 0:05:20]} 10. h3 {[%emt 0:00:19]} Bd7 {[%emt 0:01:18]} 11. O-O {[%emt 0:00:17]} O-O {[%emt 0:02:10]} 12. f4 {[%emt 0:03:24]} Na5 {[%emt 0:04:00]} 13. Nd4 {[%emt 0:04:06]} a6 {[%emt 0:01:29]} 14. Qd3 {[%emt 0:03:09]} Rac8 {[%emt 0:00:40]} 15. Rfd1 {[%emt 0:13:55]} b5 {[%emt 0:04:33]} 16. Kh2 {[%emt 0:07:50]} Nc4 {[%emt 0:04:52]} 17. Nxc4 {[%emt 0:00:20]} bxc4 {[%emt 0:01:51]} 18. Qe2 {[%emt 0:03:25]} Rb8 {[%emt 0:00:34]} 19. Rab1 {[%emt 0:04:32]} Rfc8 {[%emt 0:01:23]} 20. Bf2 {[%emt 0:02:48]} e5 {[%emt 0:03:44]} 21. fxe5 {[%emt 0:00:18]} dxe5 {[%emt 0:01:02]} 22. Nc2 {[%emt 0:00:31]} Ba4 {[%emt 0:02:00]} 23. Rd2 {[%emt 0:00:22]} Bxc2 {[%emt 0:04:54]} 24. Rxc2 {[%emt 0:00:18]} Rd8 {[%emt 0:00:16]} 25. Rd1 {[%emt 0:04:44]} Bh6 {[%emt 0:00:59]} 26. Rxd8+ {[%emt 0:01:44]} Rxd8 {[%emt 0:00:10]} 27. Be3 {[%emt 0:00:20]} Bxe3 {[%emt 0:00:54]} 28. Qxe3 {[%emt 0:00:51]} Rd3 {[%emt 0:03:53]} 29. Qf2 {[%emt 0:06:25]} Qc6 {[%emt 0:04:00]} 30. Re2 {[%emt 0:03:31]} Nh5 {[%emt 0:00:32]} 31. Bf3 {[%emt 0:00:33]} Ng7 {[%emt 0:08:03]} 32. Rd2 {[%emt 0:06:33]} Rxd2 {[%emt 0:06:23]} 33. Qxd2 {[%emt 0:00:20]} Ne6 {[%emt 0:00:05]} 34. Qe2 {[%emt 0:06:20]} Qa4 {[%emt 0:08:55]} 35. a3 {[%emt 0:01:34]} Qb5 {[%emt 0:00:17]} 36. Bg2 {[%emt 0:12:40]} Nc5 {[%emt 0:08:50]} 37. Bf1 {[%emt 0:00:08]} Na4 {[%emt 0:00:16]} 38. Qxc4 {[%emt 0:00:13]} Qxb2+ {[%emt 0:00:07]} 39. Bg2 {[%emt 0:02:49]} Qb5 {[%emt 0:00:52]} 40. Qc8+ {[%emt 0:00:25]} Kg7 {[%emt 0:00:10]} 41. c4 {[%emt 0:40:18]} Qa5 {[%emt 0:41:52]} 42. Qb8 {[%emt 0:01:36]} Qc5 {[%emt 0:00:51]} 43. Qb4 {[%emt 0:00:45]} Qc6 {[%emt 0:00:24]} 44. Qe7 {[%emt 0:01:26]} Qc5 {[%emt 0:00:48]} 45. Qxc5 {[%emt 0:00:43]} Nxc5 {[%emt 0:00:05]} 46. Kg1 {[%emt 0:00:18]} Kf6 {[%emt 0:01:58]} 47. Kf2 {[%emt 0:01:01]} Ke6 {[%emt 0:00:07]} 48. Ke3 {[%emt 0:00:25]} Kd6 {[%emt 0:00:06]} 1/2-1/2

[Event "45th Guernsey Open 2019"]
[Site "Vale"]
[Date "2019.10.20"]
[Round "1.6"]
[White "Bianco, Valerio"]
[Black "Korte, Markus"]
[Result "1-0"]
[WhiteElo "2088"]
[BlackElo "1975"]
[Annotator "NA RC"]
[PlyCount "77"]
[EventDate "2019.10.20"]
[EventCountry "GCI"]
[SourceTitle "playchess.com"]
[Source "ChessBase"]
[SourceQuality "1"]
[TimeControl "40/6000+30:2400+30"]

1. d4 {[%emt 0:00:00]} d5 {[%emt 0:00:00]} 2. c4 {[%emt 0:00:00]} dxc4 {[%emt 0:00:00]} 3. Nf3 {[%emt 0:00:00]} Nf6 {[%emt 0:00:00]} 4. e3 {[%emt 0:00:06]} Bg4 {[%emt 0:00:13]} 5. Bxc4 {[%emt 0:00:23]} e6 {[%emt 0:00:05]} 6. h3 {[%emt 0:08:10]} Bh5 {[%emt 0:00:44]} 7. O-O {[%emt 0:05:30]} Nbd7 {[%emt 0:03:19]} 8. Nc3 {[%emt 0:02:03]} Bb4 {[%emt 0:06:14]} 9. Be2 {[%emt 0:09:18]} O-O {[%emt 0:03:54]} 10. Qb3 {[%emt 0:01:44]} Qe7 {[%emt 0:07:26]} 11. Bd2 {[%emt 0:05:02]} Rab8 {[%emt 0:14:20]} 12. a3 {[%emt 0:04:29]} Bxc3 {[%emt 0:04:37]} 13. Bxc3 {[%emt 0:00:23]} Rfc8 {[%emt 0:03:50]} 14. Qd1 {[%emt 0:09:46]} Ne4 {[%emt 0:10:43]} 15. Nd2 {[%emt 0:03:21]} Nxc3 {[%emt 0:04:24]} 16. bxc3 {[%emt 0:00:07]} Bxe2 {[%emt 0:00:25]} 17. Qxe2 {[%emt 0:00:05]} e5 {[%emt 0:00:28]} 18. Qf3 {[%emt 0:09:16]} Re8 {[%emt 0:08:28]} 19. Rfe1 {[%emt 0:02:34]} e4 {[%emt 0:02:46]} 20. Qf4 {[%emt 0:03:00]} Nf6 {[%emt 0:02:16]} 21. c4 {[%emt 0:00:26]} b5 {[%emt 0:05:20]} 22. Rec1 {[%emt 0:02:37]} bxc4 {[%emt 0:14:56]} 23. Nxc4 {[%emt 0:00:52]} Nd5 {[%emt 0:02:28]} 24. Qf5 {[%emt 0:08:42]} Rb5 {[%emt 0:05:59]} 25. Ne5 {[%emt 0:07:42]} Nf6 {[%emt 0:04:01]} 26. Qf4 {[%emt 0:02:09]} Rb7 {[%emt 0:02:16]} 27. Rc5 {[%emt 0:04:50]} Nd7 {[%emt 0:00:56]} 28. Nxd7 {[%emt 0:01:16]} Qxd7 {[%emt 0:00:02]} 29. Rac1 {[%emt 0:00:43]} Qa4 {[%emt 0:01:07]} 30. Rxc7 {[%emt 0:02:35]} Rxc7 {[%emt 0:00:32]} 31. Rxc7 {[%emt 0:00:16]} Rf8 {[%emt 0:00:23]} 32. Rc3 {[%emt 0:03:34]} Qd1+ {[%emt 0:01:13]} 33. Kh2 {[%emt 0:00:06]} Qb1 {[%emt 0:00:10]} 34. d5 {[%emt 0:02:25]} Qb2 {[%emt 0:00:55]} 35. Qe5 {[%emt 0:04:36]} h6 {[%emt 0:00:59]} 36. d6 {[%emt 0:00:54]} Rd8 {[%emt 0:00:38]} 37. Qe7 {[%emt 0:02:33]} Qb6 {[%emt 0:01:12]} 38. d7 {[%emt 0:02:14]} Qb8+ {[%emt 0:00:59]} 39. g3 {[%emt 0:00:12]} 1-0

[Event "45th Guernsey Open 2019"]
[Site "Vale"]
[Date "2019.10.20"]
[Round "1.7"]
[White "White, Nigel"]
[Black "Curtis, John"]
[Result "1/2-1/2"]
[ECO "B07"]
[WhiteElo "1975"]
[BlackElo "2292"]
[Annotator "NA"]
[PlyCount "46"]
[EventDate "2019.10.20"]
[EventCountry "GCI"]
[SourceTitle "playchess.com"]
[Source "ChessBase"]
[SourceQuality "1"]
[TimeControl "40/6000+30:2400+30"]

1. e4 {[%emt 0:00:00]} d6 {[%emt 0:00:00]} 2. d4 {[%emt 0:00:00]} Nf6 {[%emt 0:00:00]} 3. Nc3 {[%emt 0:00:00]} e5 {[%emt 0:00:00]} 4. Nf3 {[%emt 0:00:00]} exd4 {[%emt 0:00:00]} 5. Nxd4 {[%emt 0:01:20]} Be7 {[%emt 0:00:06]} 6. Bc4 {[%emt 0:00:05]} O-O {[%emt 0:00:13]} 7. O-O {[%emt 0:00:22]} c6 {[%emt 0:00:07]} 8. a4 {[%emt 0:01:13]} Nxe4 {[%emt 0:00:24]} 9. Nxe4 {[%emt 0:00:25]} d5 {[%emt 0:00:05]} 10. Bd3 {[%emt 0:00:47]} dxe4 {[%emt 0:00:08]} 11. Bxe4 {[%emt 0:00:01]} Bf6 {[%emt 0:00:21]} 12. Be3 {[%emt 0:04:24]} Re8 {[%emt 0:00:51]} 13. Bf3 {[%emt 0:01:12]} Nd7 {[%emt 0:03:55]} 14. c3 {[%emt 0:06:49]} Ne5 {[%emt 0:05:24]} 15. Be2 {[%emt 0:00:21]} Qd5 $11 {[%emt 0:02:55]} 16. Nf3 {[%emt 0:13:33]} Qxd1 {[%emt 0:07:32]} 17. Bxd1 {[%emt 0:09:00]} Nc4 {[%emt 0:00:43]} 18. Bc1 {[%emt 0:00:01]} Bf5 {[%emt 0:08:13]} 19. Bb3 {[%emt 0:02:07]} Na5 {[%emt 0:26:28]} 20. Ba2 {[%emt 0:03:21]} Bd3 {[%emt 0:02:30]} 21. Re1 {[%emt 0:00:48]} Bc4 {[%emt 0:04:32]} 22. Rxe8+ {[%emt 0:06:45]} Rxe8 {[%emt 0:00:05]} 23. Be3 {[%emt 0:00:09]} b6 {[%emt 0:06:23]} 1/2-1/2

[Event "45th Guernsey Open 2019"]
[Site "Vale"]
[Date "2019.10.20"]
[Round "1.8"]
[White "Reijneveld, Ad"]
[Black "Rowe, Peter"]
[Result "1-0"]
[ECO "B34"]
[WhiteElo "2056"]
[BlackElo "1957"]
[Annotator "NA RC"]
[PlyCount "39"]
[EventDate "2019.10.20"]
[EventCountry "GCI"]
[SourceTitle "playchess.com"]
[Source "ChessBase"]
[SourceQuality "1"]
[TimeControl "40/6000+30:2400+30"]

1. e4 {[%emt 0:00:00]} c5 {[%emt 0:00:10]} 2. Nf3 {[%emt 0:00:00]} Nc6 {[%emt 0:00:09]} 3. d4 {[%emt 0:00:00]} cxd4 {[%emt 0:00:08]} 4. Nxd4 {[%emt 0:00:00]} Nf6 {[%emt 0:00:17]} 5. Nc3 {[%emt 0:00:06]} e5 {[%emt 0:00:14]} 6. Ndb5 {[%emt 0:00:22]} d6 {[%emt 0:00:12]} 7. Nd5 {[%emt 0:00:45]} Nxd5 8. exd5 a6 {[%emt 0:03:51]} 9. dxc6 {[%emt 0:09:15]} axb5 {[%emt 0:00:09]} 10. cxb7 {[%emt 0:00:24]} Bxb7 {[%emt 0:00:10]} 11. Bxb5+ {[%emt 0:00:16]} Ke7 {[%emt 0:00:07]} 12. O-O {[%emt 0:00:39]} g6 {[%emt 0:02:19]} 13. Qe2 {[%emt 0:03:45]} Bg7 {[%emt 0:05:36]} 14. f4 {[%emt 0:06:59]} f6 {[%emt 0:05:28]} 15. fxe5 {[%emt 0:02:13]} dxe5 {[%emt 0:00:18]} 16. Rd1 {[%emt 0:00:40]} Qc8 {[%emt 0:03:34]} 17. Rd7+ {[%emt 0:01:29]} Kf8 {[%emt 0:00:21]} 18. Qd3 {[%emt 0:05:21]} Ba6 {[%emt 0:17:31]} 19. Qd6+ {[%emt 0:00:55]} Kg8 {[%emt 0:00:14]} 20. Qe6+ {[%emt 0:00:10]} 1-0

[Event "45th Guernsey Open 2019"]
[Site "Vale"]
[Date "2019.10.20"]
[Round "1.10"]
[White "Coenen, Albert"]
[Black "Parfett, Gerald F"]
[Result "1-0"]
[ECO "A34"]
[WhiteElo "1899"]
[BlackElo "1633"]
[Annotator "NA"]
[PlyCount "93"]
[EventDate "2019.10.20"]
[EventCountry "GCI"]
[SourceTitle "playchess.com"]
[Source "ChessBase"]
[SourceQuality "1"]
[TimeControl "40/6000+30:2400+30"]

1. c4 {[%emt 0:00:00]} c5 {[%emt 0:00:00]} 2. Nc3 {[%emt 0:00:00]} Nf6 {[%emt 0:00:00]} 3. g3 {[%emt 0:00:11]} d5 {[%emt 0:00:00]} 4. cxd5 {[%emt 0:00:13]} Nxd5 {[%emt 0:00:10]} 5. Bg2 {[%emt 0:00:09]} Nc7 {[%emt 0:00:18]} 6. Nf3 {[%emt 0:00:57]} Nc6 {[%emt 0:00:23]} 7. d3 {[%emt 0:01:30]} e5 {[%emt 0:00:34]} 8. O-O {[%emt 0:01:02]} f6 {[%emt 0:00:33]} 9. Bd2 {[%emt 0:07:47]} Be7 {[%emt 0:00:16]} 10. Rc1 {[%emt 0:00:39]} O-O {[%emt 0:05:00]} 11. Na4 {[%emt 0:02:48]} Na6 {[%emt 0:03:27]} 12. Qb3+ {[%emt 0:03:45]} Kh8 {[%emt 0:00:36]} 13. a3 {[%emt 0:04:23]} Rb8 {[%emt 0:01:55]} 14. Nc3 {[%emt 0:07:39]} Nc7 {[%emt 0:01:52]} 15. Ne4 {[%emt 0:02:03]} b6 {[%emt 0:00:43]} 16. Qd1 {[%emt 0:05:13]} Bb7 {[%emt 0:03:17]} 17. h4 {[%emt 0:07:02]} Ne6 {[%emt 0:01:02]} 18. Bh3 {[%emt 0:02:15]} Ned4 {[%emt 0:01:34]} 19. Nxd4 {[%emt 0:00:57]} Nxd4 {[%emt 0:00:42]} 20. Be3 {[%emt 0:02:28]} Bc8 {[%emt 0:01:34]} 21. Bxc8 {[%emt 0:05:04]} Rxc8 {[%emt 0:00:19]} 22. Bxd4 {[%emt 0:05:04]} Qxd4 {[%emt 0:04:08]} 23. Qd2 {[%emt 0:01:29]} Rfd8 {[%emt 0:05:07]} 24. Rfd1 {[%emt 0:02:39]} h6 {[%emt 0:02:11]} 25. Rc4 {[%emt 0:01:12]} Qxc4 {[%emt 0:04:31]} 26. dxc4 {[%emt 0:00:06]} Rxd2 {[%emt 0:00:16]} 27. Rxd2 {[%emt 0:00:06]} Rd8 {[%emt 0:00:02]} 28. Rxd8+ {[%emt 0:01:08]} Bxd8 {[%emt 0:00:06]} 29. Nc3 {[%emt 0:00:47]} Kg8 {[%emt 0:02:13]} 30. g4 {[%emt 0:02:35]} Kf7 {[%emt 0:00:10]} 31. Kg2 {[%emt 0:00:47]} Ke6 {[%emt 0:03:01]} 32. Kf3 {[%emt 0:01:45]} f5 {[%emt 0:01:33]} 33. gxf5+ {[%emt 0:02:18]} Kxf5 {[%emt 0:00:15]} 34. e4+ {[%emt 0:01:24]} Ke6 {[%emt 0:01:07]} 35. Kg4 {[%emt 0:00:37]} g5 {[%emt 0:01:28]} 36. h5 {[%emt 0:02:06]} a6 {[%emt 0:02:20]} 37. Nd5 {[%emt 0:01:11]} b5 {[%emt 0:01:26]} 38. b3 {[%emt 0:00:16]} bxc4 {[%emt 0:01:00]} 39. bxc4 {[%emt 0:00:06]} Ba5 {[%emt 0:01:01]} 40. Ne3 {[%emt 0:01:32]} Be1 {[%emt 0:04:49]} 41. f3 {[%emt 0:40:06]} Bd2 {[%emt 0:41:16]} 42. Nf5 {[%emt 0:00:10]} a5 {[%emt 0:01:40]} 43. a4 {[%emt 0:00:09]} Kf6 {[%emt 0:00:56]} 44. Nxh6 {[%emt 0:00:10]} Kg7 {[%emt 0:00:38]} 45. Nf5+ {[%emt 0:00:15]} Kh7 {[%emt 0:00:20]} 46. Nd6 {[%emt 0:00:41]} Kh6 {[%emt 0:00:32]} 47. Nf7+ {[%emt 0:00:10]} 1-0

[Event "45th Guernsey Open 2019"]
[Site "Vale"]
[Date "2019.10.20"]
[Round "1.11"]
[White "Kershaw, Graham"]
[Black "Strade, Arita"]
[Result "0-1"]
[ECO "B93"]
[WhiteElo "1631"]
[BlackElo "1882"]
[Annotator "NA"]
[PlyCount "70"]
[EventDate "2019.10.20"]
[EventCountry "GCI"]
[SourceTitle "playchess.com"]
[Source "ChessBase"]
[SourceQuality "1"]
[TimeControl "40/6000+30:2400+30"]

1. e4 {[%emt 0:00:00]} c5 {[%emt 0:00:00]} 2. Nf3 {[%emt 0:00:00]} d6 {[%emt 0:00:01]} 3. d4 {[%emt 0:00:00]} cxd4 {[%emt 0:00:13]} 4. Nxd4 {[%emt 0:00:00]} Nf6 {[%emt 0:00:15]} 5. Nc3 {[%emt 0:00:00]} a6 {[%emt 0:00:16]} 6. f4 {[%emt 0:00:29]} e5 {[%emt 0:03:41]} 7. Nb3 {[%emt 0:04:25]} Nc6 {[%emt 0:09:55]} 8. Be2 {[%emt 0:04:31]} b5 {[%emt 0:03:08]} 9. Bf3 {[%emt 0:00:43]} Qb6 {[%emt 0:07:12]} 10. Qe2 {[%emt 0:01:59]} Be6 {[%emt 0:02:55]} 11. Nd5 {[%emt 0:04:04]} Bxd5 {[%emt 0:01:39]} 12. exd5 {[%emt 0:00:07]} Nd4 {[%emt 0:03:16]} 13. Nxd4 {[%emt 0:06:46]} Qxd4 {[%emt 0:00:14]} 14. c3 {[%emt 0:00:40]} Qc4 {[%emt 0:02:20]} 15. Qxc4 {[%emt 0:25:11]} bxc4 {[%emt 0:00:05]} 16. Kf2 {[%emt 0:00:18]} Nd7 {[%emt 0:07:29]} 17. Re1 {[%emt 0:02:30]} f6 {[%emt 0:07:07]} 18. b4 {[%emt 0:04:45]} cxb3 {[%emt 0:01:51]} 19. axb3 {[%emt 0:00:51]} Nc5 {[%emt 0:00:17]} 20. Be2 {[%emt 0:00:25]} Ne4+ {[%emt 0:02:59]} 21. Kf1 {[%emt 0:03:23]} Nxc3 {[%emt 0:00:43]} 22. Bxa6 {[%emt 0:00:18]} Ke7 {[%emt 0:02:23]} 23. Ra5 {[%emt 0:02:01]} Nxd5 {[%emt 0:01:56]} 24. Rxd5 {[%emt 0:01:23]} Rxa6 {[%emt 0:00:10]} 25. Bd2 {[%emt 0:06:04]} Ke6 {[%emt 0:01:19]} 26. Rb5 {[%emt 0:00:30]} Be7 {[%emt 0:01:37]} 27. Rc1 {[%emt 0:06:13]} g5 {[%emt 0:05:01]} 28. fxg5 {[%emt 0:02:12]} fxg5 {[%emt 0:00:11]} 29. Rc7 {[%emt 0:00:23]} Ra2 {[%emt 0:04:41]} 30. Ke1 {[%emt 0:00:41]} Bf6 {[%emt 0:05:33]} 31. b4 {[%emt 0:01:15]} Rb2 {[%emt 0:01:49]} 32. Rbb7 {[%emt 0:02:14]} Ra8 {[%emt 0:01:37]} 33. Rc1 {[%emt 0:01:37]} Raa2 {[%emt 0:01:39]} 34. Rd1 {[%emt 0:00:24]} e4 {[%emt 0:00:31]} 35. Rxh7 {[%emt 0:00:45]} Rxd2 {[%emt 0:02:15]} 0-1